bitfinex-derivatives/quotes_BTCF0:USTF0_20241227
["timestamp","ask_amount","ask_price","bid_price","bid_amount"]
[1735264388509,0.15594062,95901.0,95896.0,0.001]
[1735264389828,0.001,95897.0,95896.0,0.001]
[1735264390027,0.15594062,95901.0,95896.0,0.001]
[1735264390423,0.15594062,95901.0,95896.0,0.003]
[1735264390721,0.001,95901.0,95896.0,0.003]
[1735264392030,0.001,95901.0,95899.0,5.07e-05]
[1735264392829,0.15594062,95904.0,95899.0,0.3000507]
[1735264393032,0.052186,95945.0,95902.0,0.07596657]
[1735264393322,0.052194,95930.0,95903.0,0.04094352]
[1735264393515,0.052197,95923.0,95907.0,0.052206]
[1735264393723,0.12488736,95914.0,95902.0,0.12817557]
[1735264394030,0.052204,95910.0,95899.0,0.0050507]
[1735264394329,0.052204,95910.0,95902.0,0.004]
[1735264395533,0.052202,95915.0,95902.0,0.004]
[1735264396032,0.052202,95915.0,95907.0,0.002]
[1735264396420,0.001,95910.0,95902.0,0.005]
[1735264396626,0.001,95910.0,95902.0,0.003]
[1735264396825,0.12488736,95917.0,95907.0,0.052206]
[1735264397032,0.12488736,95917.0,95907.0,0.12817257]
[1735264397332,0.12488736,95919.0,95911.0,0.052204]
[1735264397532,0.12488736,95919.0,95912.0,0.2785]
[1735264397731,0.12488736,95919.0,95912.0,0.330703]
[1735264398032,0.12488736,95919.0,95913.0,0.2903]
[1735264398224,0.12488736,95919.0,95913.0,0.342502]
[1735264398637,0.12488736,95926.0,95913.0,0.342502]
[1735264398931,0.12488736,95926.0,95916.0,0.052201]
[1735264399333,0.052188,95941.0,95916.0,0.37596657]
[1735264399528,0.052184,95947.0,95927.0,0.052195]
[1735264399729,0.052184,95947.0,95916.0,0.37596657]
[1735264399941,0.052184,95947.0,95927.0,0.052195]
[1735264400237,0.001,95926.0,95925.0,0.052196]
[1735264400437,0.07596657,95960.0,95916.0,0.37596657]
[1735264400634,0.006,95934.0,95930.0,0.07596657]
[1735264400835,0.052183,95949.0,95931.0,0.052193]
[1735264401042,0.07596657,95960.0,95931.0,0.052193]
[1735264401229,0.052184,95949.0,95932.0,0.052192]
[1735264401435,0.052184,95949.0,95934.0,0.052191]
[1735264401630,0.07596657,95960.0,95934.0,0.052191]
[1735264401837,0.1581,95963.0,95934.0,0.052191]
[1735264401838,0.07596657,95950.0,95934.0,0.052191]
[1735264402137,0.052184,95947.0,95934.0,0.052191]
[1735264402340,0.053184,95947.0,95931.0,0.001]
[1735264402541,0.053184,95947.0,95935.0,0.052191]
[1735264402729,0.053184,95947.0,95936.0,0.05219]
[1735264402926,0.052185,95946.0,95936.0,0.05219]
[1735264403529,0.052185,95946.0,95937.0,0.2959]
[1735264403840,0.001,95947.0,95937.0,0.2959]
[1735264404039,0.052187,95943.0,95938.0,0.2746]
[1735264404745,0.001,95947.0,95938.0,0.2746]
[1735264405048,0.001,95947.0,95938.0,0.326789]
[1735264405234,0.052185,95945.0,95938.0,0.326789]
[1735264405437,0.052186,95944.0,95938.0,0.326789]
[1735264405634,0.052185,95945.0,95938.0,0.2746]
[1735264405836,0.052188,95941.0,95938.0,0.2746]
[1735264406144,0.001,95947.0,95938.0,0.2826]
[1735264406442,0.052189,95939.0,95938.0,0.008]
[1735264406838,0.152189,95939.0,95938.0,0.008]
[1735264407139,0.052189,95939.0,95938.0,0.007]
[1735264407344,0.052189,95939.0,95938.0,0.008]
[1735264408032,0.052189,95939.0,95938.0,0.007]
[1735264408434,0.052189,95939.0,95917.0,0.0415167]
[1735264408731,0.052198,95922.0,95915.0,0.2864]
[1735264408933,0.052199,95921.0,95915.0,0.2864]
[1735264409133,0.052194,95929.0,95915.0,0.2864]
[1735264409341,0.052199,95921.0,95915.0,0.2864]
[1735264409838,0.052199,95921.0,95917.0,0.006]
[1735264410433,0.052199,95921.0,95915.0,0.2864]
[1735264410434,0.053199,95921.0,95915.0,0.2954]
[1735264410639,0.001,95921.0,95915.0,0.2954]
[1735264411043,0.052201,95916.0,95915.0,0.2954]
[1735264411239,0.001,95921.0,95915.0,0.2954]
[1735264411437,0.053199,95921.0,95915.0,0.2954]
[1735264411641,0.053199,95921.0,95917.0,0.001]
[1735264412243,0.00156406,95936.0,95917.0,0.001]
[1735264412438,0.001,95921.0,95920.0,0.12816557]
[1735264412747,0.001,95921.0,95917.0,0.003]
[1735264413249,0.052199,95918.0,95917.0,0.002]
[1735264413552,0.052199,95918.0,95915.0,0.2884]
[1735264414034,0.052199,95918.0,95917.0,0.001]
[1735264414744,0.052199,95918.0,95915.0,0.2864]
[1735264414946,0.052199,95918.0,95915.0,0.2884]
[1735264415440,0.001,95921.0,95915.0,0.2884]
[1735264415636,0.001,95921.0,95915.0,0.002]
[1735264415837,0.0522,95916.0,95915.0,0.004]
[1735264416349,0.0522,95916.0,95915.0,0.002]
[1735264417238,0.0522,95916.0,95915.0,0.003]
[1735264417639,0.0532,95916.0,95915.0,0.003]
[1735264417851,0.0532,95916.0,95915.0,0.002]
[1735264419551,0.052209,95900.0,95895.0,0.00156417]
[1735264420750,0.052209,95900.0,95899.0,0.0010507]
[1735264421138,0.053209,95900.0,95899.0,0.0030507]
[1735264423844,0.053209,95900.0,95899.0,0.0020507]
[1735264424041,0.053209,95900.0,95899.0,5.07e-05]
[1735264424653,0.052209,95900.0,95899.0,5.07e-05]
[1735264429647,0.052209,95900.0,95899.0,0.0010507]
[1735264430542,0.09340984,95918.0,95899.0,0.0010507]
[1735264430756,0.052204,95910.0,95900.0,0.330809]
[1735264431253,0.052201,95915.0,95906.0,0.052205]
[1735264431460,0.052201,95915.0,95908.0,0.052205]
[1735264431752,0.052199,95919.0,95909.0,0.052204]
[1735264431956,0.052199,95919.0,95907.0,0.2792]
[1735264431957,0.052199,95919.0,95910.0,0.052203]
[1735264432158,0.052199,95919.0,95911.0,0.052203]
[1735264433051,0.052199,95918.0,95908.0,0.002]
[1735264433458,0.052199,95918.0,95911.0,0.002]
[1735264434951,0.001,95918.0,95911.0,0.002]
[1735264435151,0.052202,95912.0,95908.0,0.2633]
[1735264435355,0.052202,95912.0,95908.0,0.2673]
[1735264435756,0.001,95918.0,95908.0,0.2673]
[1735264435958,0.052203,95911.0,95908.0,0.2633]
[1735264436757,0.052203,95911.0,95908.0,0.2653]
[1735264437247,0.053203,95911.0,95908.0,0.2653]
[1735264439351,0.052203,95911.0,95908.0,0.2653]
[1735264439662,0.053203,95911.0,95908.0,0.2653]
[1735264441364,0.053203,95911.0,95908.0,0.2663]
[1735264441963,0.053203,95911.0,95908.0,0.2633]
[1735264442269,0.053203,95911.0,95908.0,0.2663]
[1735264445057,0.053203,95911.0,95908.0,0.2633]
[1735264445258,0.053203,95911.0,95908.0,0.2663]
[1735264445863,0.052203,95911.0,95908.0,0.2663]
[1735264446071,0.053203,95911.0,95908.0,0.2663]
[1735264446664,0.001,95911.0,95908.0,0.2653]
[1735264448165,0.001,95911.0,95908.0,0.51477067]
[1735264449567,0.001,95911.0,95910.0,0.24947067]
[1735264449967,0.0522,95917.0,95910.0,0.24947067]
[1735264450166,0.001,95911.0,95910.0,0.24947067]
[1735264451170,0.001,95911.0,95910.0,0.25147067]
[1735264451672,0.0522,95917.0,95910.0,0.25147067]
[1735264451863,0.001,95911.0,95910.0,0.24947067]
[1735264452063,0.001,95911.0,95910.0,0.25147067]
[1735264454169,0.001,95911.0,95910.0,0.24947067]
[1735264454359,0.001,95911.0,95910.0,0.002]
[1735264457170,0.001,95911.0,95908.0,0.2633]
[1735264457478,0.053203,95911.0,95910.0,0.002]
[1735264457676,0.053203,95911.0,95904.0,0.31147068]
[1735264457677,0.052206,95905.0,95904.0,0.31147068]
[1735264457976,0.052206,95905.0,95896.0,0.37383349]
[1735264457977,0.052209,95900.0,95896.0,0.37383349]
[1735264458175,0.052206,95905.0,95895.0,0.37383349]
[1735264458477,0.052211,95896.0,95895.0,0.37383349]
[1735264459676,0.10728894,95896.0,95876.0,0.43669908]
[1735264459979,0.052215,95889.0,95873.0,0.2645]
[1735264460179,0.052215,95889.0,95882.0,0.02988972]
[1735264461264,0.053215,95889.0,95882.0,0.02988972]
[1735264461475,0.053215,95889.0,95888.0,0.00456415]
[1735264462067,0.053215,95889.0,95888.0,0.00256415]
[1735264462266,0.14684531,95889.0,95888.0,0.00256415]
[1735264462871,0.14584531,95889.0,95888.0,0.00256415]
[1735264463063,0.14684531,95889.0,95888.0,0.00256415]
[1735264463470,0.14584531,95889.0,95888.0,0.00156415]
[1735264463674,0.053215,95889.0,95888.0,0.00256415]
[1735264464870,0.001,95889.0,95888.0,0.00256415]
[1735264466466,0.053215,95889.0,95888.0,0.00256415]
[1735264469482,0.001,95889.0,95888.0,0.00256415]
[1735264470982,0.052213,95892.0,95888.0,0.00256415]
[1735264471182,0.001,95889.0,95888.0,0.00156415]
[1735264471383,0.001,95889.0,95888.0,0.00256415]
[1735264474281,0.17715838,95908.0,95888.0,0.30256415]
[1735264474481,0.17715838,95908.0,95893.0,0.052213]
[1735264474686,0.07596657,95903.0,95894.0,0.2828]
[1735264474888,0.17715838,95908.0,95894.0,0.2828]
[1735264475085,0.052205,95908.0,95894.0,0.2828]
[1735264475388,0.07596657,95910.0,95894.0,0.2828]
[1735264475692,0.052205,95908.0,95894.0,0.2828]
[1735264475890,0.07596657,95910.0,95894.0,0.2828]
[1735264476080,0.052205,95907.0,95894.0,0.2828]
[1735264476389,0.052205,95907.0,95903.0,0.18700936]
[1735264476975,0.3,95959.0,95903.0,0.18700936]
[1735264477177,0.07596657,95913.0,95903.0,0.18700936]
[1735264477382,0.052205,95908.0,95903.0,0.21657622]
[1735264477576,0.07596657,95913.0,95903.0,0.21657622]
[1735264477885,0.004,95907.0,95903.0,0.21657622]
[1735264478388,0.052194,95928.0,95903.0,0.21657622]
[1735264478590,0.052206,95905.0,95903.0,0.21657622]
[1735264478891,0.07596657,95920.0,95903.0,0.21657622]
[1735264479190,0.052203,95912.0,95903.0,0.21657622]
[1735264479390,0.002,95908.0,95903.0,0.21657622]
[1735264479587,0.004,95908.0,95903.0,0.21657622]
[1735264479888,0.052204,95909.0,95903.0,0.21657622]
[1735264480088,0.052204,95909.0,95904.0,0.24934581]
[1735264481285,0.002,95909.0,95904.0,0.24934581]
[1735264482082,0.003,95909.0,95905.0,0.593806]
[1735264482490,0.003,95909.0,95907.0,0.24934581]
[1735264482891,0.004,95909.0,95907.0,0.24934581]
[1735264483295,0.004,95909.0,95905.0,0.594366]
[1735264483296,0.002,95909.0,95908.0,0.24934581]
[1735264483482,0.004,95909.0,95908.0,0.24934581]
[1735264483894,0.005,95909.0,95908.0,0.24934581]
[1735264484393,0.002,95909.0,95908.0,0.24934581]
[1735264484693,0.006,95909.0,95908.0,0.24934581]
[1735264485195,0.004,95909.0,95908.0,0.24934581]
[1735264485392,0.006,95909.0,95908.0,0.24934581]
[1735264487498,0.006,95909.0,95907.0,0.03006473]
[1735264487795,0.006,95909.0,95905.0,0.594366]
[1735264488003,0.006,95909.0,95905.0,0.593806]
[1735264488793,0.006,95909.0,95905.0,0.62403732]
[1735264489493,0.004,95909.0,95905.0,0.62403732]
[1735264489797,0.009,95909.0,95905.0,0.62403732]
[1735264490000,0.009,95909.0,95905.0,0.57183132]
[1735264490300,0.002,95909.0,95905.0,0.57183132]
[1735264490498,0.004,95909.0,95905.0,0.57183132]
[1735264491001,0.052205,95907.0,95905.0,0.57183132]
[1735264491300,0.052205,95907.0,95905.0,0.88396192]
[1735264492192,0.054205,95907.0,95905.0,0.88396192]
[1735264492593,0.056205,95907.0,95905.0,0.88396192]
[1735264493098,0.056205,95907.0,95906.0,0.3121306]
[1735264495494,0.056205,95907.0,95906.0,0.2477041]
[1735264495689,0.054205,95907.0,95906.0,0.2477041]
[1735264496001,0.057205,95907.0,95906.0,0.2477041]
[1735264496190,0.052204,95910.0,95906.0,0.2477041]
[1735264496500,0.07596657,95914.0,95906.0,0.2477041]
[1735264496501,0.052205,95908.0,95906.0,0.2477041]
[1735264498000,0.052205,95908.0,95907.0,0.2477041]
[1735264498705,0.054205,95908.0,95907.0,0.2477041]
[1735264498898,0.057205,95908.0,95907.0,0.2477041]
[1735264500791,0.055205,95908.0,95907.0,0.2477041]
[1735264501002,0.057205,95908.0,95907.0,0.2477041]
[1735264502502,0.057205,95908.0,95907.0,0.62153759]
[1735264503691,0.057205,95908.0,95907.0,0.2477041]
[1735264505010,0.057205,95908.0,95907.0,0.54350952]
[1735264506003,0.04988878,95920.0,95907.0,0.54350952]
[1735264506398,0.052197,95923.0,95912.0,0.052202]
[1735264506607,0.04988878,95922.0,95913.0,0.2675]
[1735264506795,0.052201,95915.0,95913.0,0.2675]
[1735264507397,0.052201,95915.0,95914.0,0.2477041]
[1735264508097,0.055201,95915.0,95914.0,0.2477041]
[1735264508597,0.061201,95915.0,95914.0,0.2487041]
[1735264509695,0.058201,95915.0,95914.0,0.2487041]
[1735264510007,0.061201,95915.0,95914.0,0.2487041]
[1735264510410,0.217782,95915.0,95914.0,0.18877276]
[1735264511907,0.061201,95915.0,95914.0,0.001]
[1735264514611,0.10000412,95915.0,95914.0,0.001]
[1735264521211,0.061201,95915.0,95914.0,0.001]
[1735264522910,0.061201,95915.0,95914.0,0.053201]
[1735264524013,0.061201,95915.0,95914.0,0.001]
[1735264527712,0.07605034,95924.0,95914.0,0.001]
[1735264528822,0.052201,95915.0,95914.0,0.001]
[1735264529120,0.07605034,95924.0,95913.0,0.04826937]
[1735264529312,0.08505034,95924.0,95910.0,0.3129546]
[1735264529513,0.052197,95922.0,95921.0,0.18744354]
[1735264530625,0.009,95924.0,95918.0,0.2965]
[1735264530815,0.052198,95920.0,95919.0,0.286]
[1735264531618,0.004,95924.0,95919.0,0.286]
[1735264531918,0.18755541,95936.0,95919.0,0.287]
[1735264532224,0.052194,95927.0,95919.0,0.287]
[1735264532409,0.18755541,95936.0,95924.0,0.052196]
[1735264532611,0.18755541,95936.0,95919.0,0.287]
[1735264532612,0.052198,95921.0,95919.0,0.287]
[1735264532817,0.052198,95921.0,95919.0,0.286]
[1735264533012,0.003,95924.0,95919.0,0.288]
[1735264533217,0.052193,95929.0,95920.0,0.24624366]
[1735264533426,0.052197,95922.0,95920.0,0.24624366]
[1735264533619,0.05219,95936.0,95920.0,0.24624366]
[1735264534224,0.05219,95935.0,95931.0,0.24967789]
[1735264534413,0.052192,95932.0,95931.0,0.24967789]
[1735264535321,0.052192,95932.0,95930.0,0.24967789]
[1735264535718,0.052187,95942.0,95930.0,0.24967789]
[1735264535920,0.054192,95932.0,95930.0,0.24967789]
[1735264536521,0.052192,95932.0,95930.0,0.24967789]
[1735264536831,0.052194,95927.0,95926.0,0.31209737]
[1735264538130,0.052195,95925.0,95924.0,0.3006]
[1735264539123,0.052195,95925.0,95924.0,0.3026]
[1735264540432,0.052197,95921.0,95920.0,0.24958164]
[1735264541730,0.052197,95921.0,95920.0,0.25158164]
[1735264541924,0.053197,95921.0,95920.0,0.25158164]
[1735264542124,0.052202,95912.0,95911.0,0.18729712]
[1735264543224,0.13024734,95921.0,95907.0,0.2884]
[1735264543225,0.052203,95910.0,95909.0,0.18729712]
[1735264545528,0.052203,95910.0,95909.0,0.18929712]
[1735264546135,0.052203,95910.0,95909.0,0.002]
[1735264546930,0.052204,95908.0,95907.0,0.2884]
[1735264547130,0.052197,95922.0,95907.0,0.2884]
[1735264547439,0.12490199,95924.0,95910.0,0.07605034]
[1735264547440,0.052202,95912.0,95910.0,0.07605034]
[1735264547635,0.12490199,95924.0,95909.0,0.002]
[1735264547937,0.052203,95910.0,95909.0,0.002]
[1735264548134,0.052203,95910.0,95908.0,0.052204]
[1735264548938,0.052203,95910.0,95909.0,0.002]
[1735264549839,0.052203,95910.0,95909.0,0.25689731]
[1735264550242,0.052203,95910.0,95909.0,0.25489731]
[1735264550439,0.052203,95910.0,95909.0,0.25789731]
[1735264551348,0.052203,95910.0,95909.0,0.25989731]
[1735264555644,0.052203,95910.0,95909.0,0.007]
[1735264557043,0.052203,95910.0,95909.0,0.005]
[1735264557244,0.052203,95910.0,95909.0,0.007]
[1735264557840,0.052203,95910.0,95909.0,0.005]
[1735264558042,0.052203,95910.0,95909.0,0.002]
[1735264558246,0.052203,95910.0,95909.0,0.007]
[1735264559646,0.052197,95922.0,95909.0,0.007]
[1735264559647,0.12490199,95919.0,95909.0,0.007]
[1735264559849,0.12490199,95919.0,95909.0,0.08305034]
[1735264560148,0.052207,95910.0,95909.0,0.08305034]
[1735264560345,0.052207,95910.0,95909.0,0.007]
[1735264560850,0.052207,95910.0,95909.0,0.002]
[1735264561150,0.052207,95910.0,95909.0,0.57209621]
[1735264563040,0.052207,95910.0,95909.0,0.56509621]
[1735264563240,0.052207,95910.0,95909.0,0.57209621]
[1735264563445,0.052207,95910.0,95909.0,0.25995509]
[1735264563843,0.052207,95910.0,95909.0,0.25795509]
[1735264564051,0.052207,95910.0,95909.0,0.25995509]
[1735264566351,0.052205,95915.0,95909.0,0.25995509]
[1735264566647,0.0522,95924.0,95909.0,0.25995509]
[1735264566843,0.0522,95923.0,95919.0,0.07605034]
[1735264567043,0.0522,95923.0,95920.0,0.2849]
[1735264567344,0.12646603,95930.0,95920.0,0.2849]
[1735264567654,0.12490199,95936.0,95920.0,0.91390543]
[1735264567840,0.12490199,95936.0,95930.0,0.07605034]
[1735264568160,0.12490199,95936.0,95931.0,0.5714]
[1735264568748,0.12490199,95936.0,95931.0,0.623595]
[1735264569152,0.052192,95939.0,95933.0,0.31216452]
[1735264570253,0.002,95936.0,95933.0,0.31216452]
[1735264571245,0.17708599,95954.0,95933.0,0.31216452]
[1735264571246,0.052193,95938.0,95934.0,0.052194]
[1735264571853,0.001,95936.0,95934.0,0.052194]
[1735264572256,0.052194,95935.0,95932.0,0.31216452]
[1735264573353,0.052194,95935.0,95932.0,0.0397873]
[1735264573550,0.052194,95935.0,95931.0,0.624156]
[1735264573752,0.052194,95935.0,95931.0,0.623596]
[1735264574146,0.053194,95935.0,95931.0,0.623596]
[1735264574744,0.052194,95935.0,95931.0,0.66260441]
[1735264576956,0.052194,95935.0,95934.0,0.24917185]
[1735264578162,0.053194,95935.0,95934.0,0.24917185]
[1735264578458,0.052194,95934.0,95933.0,0.24917185]
[1735264579757,0.052194,95934.0,95931.0,0.61096841]
[1735264579758,0.052195,95932.0,95931.0,0.61096841]
[1735264580458,0.052195,95932.0,95931.0,0.61040841]
[1735264586868,0.052195,95932.0,95931.0,0.85958026]
[1735264588461,0.052195,95932.0,95931.0,0.61040841]
[1735264592871,0.052195,95932.0,95931.0,0.62194256]
[1735264593974,0.052195,95932.0,95931.0,0.87443533]
[1735264598264,0.052195,95932.0,95931.0,0.87446278]
[1735264598475,0.09379041,95937.0,95931.0,0.87446278]
[1735264598672,0.09379041,95937.0,95934.0,0.052194]
[1735264598871,0.09379041,95937.0,95935.0,0.0115616]
[1735264599069,0.12490199,95942.0,95941.0,0.052191]
[1735264599372,0.15620159,95948.0,95946.0,0.052187]
[1735264599577,0.0015637,95955.0,95947.0,0.2950616]
[1735264599578,0.15620159,95953.0,95947.0,0.2950616]
[1735264599878,0.20838559,95953.0,95948.0,0.3143616]
[1735264600079,0.15620159,95953.0,95949.0,0.0115616]
[1735264600277,0.15620159,95953.0,95950.0,0.0115616]
[1735264600577,0.15620159,95953.0,95951.0,0.0115616]
[1735264600777,0.15620159,95953.0,95952.0,0.0115616]
[1735264600976,0.052182,95956.0,95952.0,0.0115616]
[1735264601180,0.052182,95956.0,95953.0,0.0115616]
[1735264601486,0.052182,95956.0,95954.0,0.0115616]
[1735264601673,0.052182,95956.0,95955.0,0.0115616]
[1735264602277,0.05218,95961.0,95955.0,0.0115616]
[1735264602475,0.05218,95961.0,95952.0,0.299]
[1735264602476,0.20837359,95976.0,95956.0,0.0115616]
[1735264602665,0.20837359,95976.0,95957.0,0.0115616]
[1735264602867,0.20837359,95976.0,95958.0,0.0115616]
[1735264603191,0.20837359,95976.0,95959.0,0.0115616]
[1735264603192,0.052181,95960.0,95959.0,0.0115616]
[1735264603978,0.052175,95970.0,95959.0,0.0115616]
[1735264604169,0.35610159,95979.0,95967.0,0.052176]
[1735264604170,0.15620159,95979.0,95967.0,0.052176]
[1735264604371,0.052176,95969.0,95968.0,0.0115616]
[1735264605770,0.052176,95969.0,95968.0,0.0205616]
[1735264606079,0.053176,95969.0,95968.0,0.0275616]
[1735264607175,0.053176,95969.0,95968.0,0.02753451]
[1735264608985,0.053176,95969.0,95968.0,0.02754869]
[1735264612785,0.053176,95969.0,95968.0,0.01853055]
[1735264613582,0.053176,95969.0,95968.0,0.01153055]
[1735264615776,0.001,95969.0,95968.0,0.01152623]
[1735264615980,0.053175,95969.0,95968.0,0.01152623]
[1735264616487,0.053175,95969.0,95968.0,0.01152738]
[1735264620181,0.052177,95966.0,95965.0,0.18680229]
[1735264620392,0.052177,95966.0,95965.0,0.19831411]
[1735264620687,0.052177,95966.0,95965.0,0.01151182]
[1735264621081,0.3,95966.0,95965.0,0.01150116]
[1735264621288,0.052186,95950.0,95949.0,0.31184621]
[1735264622180,0.052186,95950.0,95943.0,0.31184621]
[1735264622181,0.052189,95944.0,95943.0,0.31184621]
[1735264623289,0.052189,95944.0,95943.0,0.31284621]
[1735264623487,0.052189,95944.0,95943.0,0.001]
[1735264623884,0.052189,95944.0,95935.0,0.03454444]
[1735264623885,0.052193,95936.0,95935.0,0.03454444]
[1735264624089,0.052189,95944.0,95933.0,0.55744]
[1735264624090,0.001,95944.0,95933.0,0.55744]
[1735264624386,0.052194,95934.0,95933.0,0.2774]
[1735264624983,0.12815537,95943.0,95931.0,0.02906731]
[1735264625183,0.052195,95933.0,95931.0,0.02906731]
[1735264627089,0.052195,95933.0,95932.0,0.00107842]
[1735264635989,0.053195,95933.0,95932.0,0.00107842]
[1735264636699,0.053195,95933.0,95932.0,7.842e-05]
[1735264638291,0.00156371,95953.0,95932.0,0.05227342]
[1735264638599,0.052195,95933.0,95932.0,7.842e-05]
[1735264639507,0.052188,95947.0,95932.0,7.842e-05]
[1735264639990,0.00156371,95953.0,95932.0,0.00207842]
[1735264640188,0.052194,95935.0,95932.0,0.00207842]
[1735264640399,0.052194,95935.0,95933.0,0.01151513]
[1735264640715,0.052194,95935.0,95934.0,0.30561513]
[1735264642189,0.052194,95935.0,95934.0,0.30761513]
[1735264642385,0.052194,95935.0,95934.0,0.30762402]
[1735264643002,0.052194,95935.0,95934.0,0.30761668]
[1735264646093,0.052192,95939.0,95934.0,0.30761668]
[1735264646399,0.052192,95939.0,95935.0,0.01151668]
[1735264646600,0.052192,95939.0,95936.0,0.01151668]
[1735264646796,0.00156371,95953.0,95937.0,0.01151668]
[1735264647100,0.00156371,95953.0,95934.0,0.2961]
[1735264647101,0.052185,95952.0,95946.0,0.052188]
[1735264647293,0.052186,95951.0,95947.0,0.62151668]
[1735264647604,0.052186,95950.0,95948.0,0.01151668]
[1735264647795,0.052186,95950.0,95947.0,0.61]
[1735264647796,0.052186,95950.0,95949.0,0.01151668]
[1735264648503,0.052186,95950.0,95949.0,0.01156444]
[1735264659912,0.052186,95950.0,95949.0,0.06374744]
[1735264661007,0.052186,95950.0,95949.0,0.052183]
[1735264661213,0.052186,95950.0,95949.0,0.06376021]
[1735264661415,0.052186,95950.0,95949.0,0.01157721]
[1735264663619,0.052178,95957.0,95949.0,0.01157343]
[1735264663810,0.12493774,95963.0,95950.0,0.01157567]
[1735264664014,0.12493774,95963.0,95951.0,0.01157567]
[1735264664211,0.052178,95957.0,95954.0,0.05218]
[1735264664416,0.052178,95957.0,95955.0,0.01157567]
[1735264664615,0.052178,95957.0,95956.0,0.01157567]
[1735264665309,0.12493774,95970.0,95957.0,0.052178]
[1735264665516,0.052174,95965.0,95961.0,0.052176]
[1735264665716,0.052174,95965.0,95962.0,0.01157567]
[1735264665914,0.052174,95965.0,95961.0,0.052176]
[1735264665915,0.052174,95965.0,95963.0,0.01157567]
[1735264666111,0.052174,95965.0,95964.0,0.01157567]
[1735264669620,0.12493774,95977.0,95964.0,0.01153644]
[1735264669816,0.12493774,95977.0,95958.0,0.31184621]
[1735264669817,0.052169,95975.0,95965.0,0.01153665]
[1735264670121,0.052173,95967.0,95966.0,0.01153638]
[1735264672524,0.365773,95967.0,95966.0,0.01153638]
[1735264672821,0.365773,95967.0,95952.0,0.3095]
[1735264672822,0.05218,95953.0,95952.0,0.3095]
[1735264673023,0.05218,95953.0,95952.0,0.32103783]
[1735264674615,0.05218,95953.0,95952.0,0.32303783]
[1735264675825,0.05218,95953.0,95952.0,0.32304294]
[1735264678122,0.05218,95953.0,95952.0,0.01354294]
[1735264678526,0.05218,95953.0,95952.0,0.01154294]
[1735264678728,0.05218,95953.0,95947.0,0.31184621]
[1735264678729,0.35218,95953.0,95947.0,0.31184621]
[1735264678919,0.052183,95948.0,95947.0,0.31184621]
[1735264679425,0.052183,95948.0,95947.0,0.14230621]
[1735264679628,0.052183,95948.0,95947.0,2.1e-07]
[1735264679824,0.052191,95933.0,95931.0,0.31986107]
[1735264680426,0.052191,95933.0,95929.0,2.1e-07]
[1735264681024,0.052191,95933.0,95932.0,0.00107842]
[1735264681635,0.052191,95933.0,95932.0,7.842e-05]
[1735264681930,0.052191,95933.0,95932.0,0.00107842]
[1735264682230,0.052191,95933.0,95932.0,0.00307842]
[1735264683132,0.052191,95933.0,95932.0,0.00107842]
[1735264683831,0.17700197,95933.0,95932.0,0.00107842]
[1735264684731,0.17700197,95933.0,95932.0,7.842e-05]
[1735264684926,0.052191,95933.0,95932.0,7.842e-05]
[1735264690129,0.352191,95933.0,95932.0,4.2e-07]
[1735264690331,0.352191,95933.0,95907.0,0.24963556]
[1735264690332,0.052205,95908.0,95907.0,0.24963556]
[1735264691321,0.052207,95904.0,95903.0,0.3083]
[1735264692637,0.052207,95904.0,95903.0,0.3173]
[1735264693029,0.052207,95904.0,95903.0,0.3213]
[1735264693428,7.842e-05,95908.0,95903.0,0.3213]
[1735264693840,0.052207,95904.0,95903.0,0.3213]
[1735264694030,7.842e-05,95908.0,95903.0,0.3203]
[1735264694541,0.05228342,95908.0,95904.0,0.052206]
[1735264694740,0.052199,95920.0,95904.0,0.052206]
[1735264694929,0.052205,95909.0,95904.0,0.052206]
[1735264695132,0.052199,95920.0,95904.0,0.052206]
[1735264695332,0.12811322,95920.0,95904.0,0.052206]
[1735264696143,0.052205,95907.0,95904.0,0.065206]
[1735264696840,0.07591422,95920.0,95904.0,0.009]
[1735264697137,0.052201,95915.0,95904.0,0.03587285]
[1735264697341,0.052201,95915.0,95912.0,0.052202]
[1735264698438,0.052201,95914.0,95912.0,0.052202]
[1735264698841,0.052201,95914.0,95912.0,0.060202]
[1735264699934,0.052194,95928.0,95912.0,0.063202]
[1735264700540,0.052199,95918.0,95912.0,0.063202]
[1735264700946,0.052199,95918.0,95913.0,0.052202]
[1735264701130,0.052199,95918.0,95912.0,0.011]
[1735264701442,0.052199,95918.0,95915.0,0.052201]
[1735264701637,0.052199,95918.0,95916.0,0.3078]
[1735264702443,0.0522,95917.0,95916.0,0.3078]
[1735264703340,0.0522,95917.0,95916.0,0.3098]
[1735264704141,0.0522,95917.0,95916.0,0.3158]
[1735264707036,0.0522,95917.0,95916.0,0.008]
[1735264707846,0.0522,95917.0,95916.0,0.006]
[1735264708146,0.0522,95917.0,95916.0,0.008]
[1735264713243,0.0522,95917.0,95916.0,0.007]
[1735264713947,0.0522,95917.0,95916.0,0.002]
[1735264714451,0.0522,95917.0,95916.0,0.001]
[1735264714751,0.052207,95904.0,95901.0,0.30184356]
[1735264715641,0.052207,95904.0,95901.0,0.052208]
[1735264716545,0.052207,95904.0,95903.0,0.3093]
[1735264716952,0.052207,95904.0,95903.0,0.3143]
[1735264717345,0.052207,95904.0,95903.0,0.3093]
[1735264717548,0.052207,95904.0,95903.0,0.3143]
[1735264718446,0.052207,95904.0,95903.0,0.3093]
[1735264718646,0.052207,95904.0,95903.0,0.3143]
[1735264720441,0.052207,95904.0,95903.0,0.33414961]
[1735264724259,0.052207,95904.0,95903.0,0.38636061]
[1735264725349,0.052207,95904.0,95903.0,0.38736061]
[1735264726061,0.052207,95904.0,95903.0,0.38836061]
[1735264727862,0.052208,95910.0,95904.0,0.05221]
[1735264728161,0.052208,95910.0,95905.0,0.05221]
[1735264728350,0.052208,95910.0,95906.0,0.2939]